{"text_format":"1","workbook":"xlsx","n_sheets":1,"sheets":["Tabelle1"],"not_rendered":{"charts":0,"images":22,"macros":1,"external_links":0,"defined_names":0,"comments":0,"pivot_tables":0},"unopened":[],"bounds":{"document_bytes":16777216,"sheet_cells":100000,"rows_first":2000,"rows_last":500,"rows_between":2000,"halvings":0,"cell_chars":16384,"cell_head_chars":4096},"cells_cut":0,"cells_raw":0,"read":"whole","date_system":"1900"}

{"sheet":"Tabelle1","index":0,"n_rows":64,"n_cols":8,"rows_kept":64,"cut":false,"hidden":false,"merged":[[26,0,26,1],[27,0,27,1],[28,0,28,1]]}
[]
["Studienrichtung",null,null,null,"Studienschwerpunkt"]
[]
[true,null,null,null,true,false,false,false]
[]
[false,null,null,null,false,false,false,false]
[]
[false,null,null,null,false,false,true,false]
[]
[false,null,null,null,false,false,null,true]
[]
[null,null,null,null,false,true,null,false]
[]
["Pflichtmodule aufgrund der Studienrichtung",null,null,null,{"$f":"IF(AND(A4=TRUE,E4=TRUE),\"\",IF(AND(A6=TRUE,F4=TRUE),\"\",IF(AND(A8=TRUE,G4=TRUE),\"\",IF(AND(A10=TRUE,H4=TRUE),\"\",IF(OR(AND(A4=TRUE,E12=TRUE),AND(A6=TRUE,F10=TRUE),AND(A6=TRUE,F12=TRUE),AND(A10=TRUE,H10=TRUE),AND(A10=TRUE,H12=TRUE)),\"Pflichtmodule aufgrund des Studienschwerpunkts\",\"Wahlpflichtmodule aufgrund des Studienschwerpunkts\")))))","v":""}]
[{"$f":"IF($A$4=TRUE,\"Digital Engineering and Mobility\",IF($A$6=TRUE,\"Energietechnik\",IF($A$8=TRUE,\"Entwicklung und Konstruktion\",IF($A$10=TRUE,\"Produktionstechnik und -management\"))))","v":"Digital Engineering and Mobility"},null,null,null,{"$f":"IF(AND(A4=TRUE,E6=TRUE),\"Mikromobilität\",IF(AND(A4=TRUE,E8=TRUE),\"Robotik und angewandte künstliche Intelligenz\",IF(AND(A4=TRUE,E10=TRUE),\"Service Engineering\",IF(AND(A4=TRUE,E12=TRUE),\"Digitale Produktion\",IF(AND(A6=TRUE,F6=TRUE),\"Anlagenentwicklung\",IF(AND(A6=TRUE,F8=TRUE),\"Nachhaltige Energiesysteme\",IF(AND(A6=TRUE,F10=TRUE),\"Konstruktion energetischer Anlagen\",IF(AND(A6=TRUE,F12=TRUE),\"Energieeffiziente Produktion\",IF(AND(A8=TRUE,G6=TRUE),\"Berechnung\",IF(AND(A8=TRUE,G8=TRUE),\"Konstruktionstechnik\",IF(AND(A10=TRUE,H6=TRUE),\"Produktionstechnik\",IF(AND(A10=TRUE,H8=TRUE),\"Produkt- und Produktionsmanagement\",IF(AND(A10=TRUE,H10=TRUE),\"Energieeffiziente Produktion\",IF(AND(A10=TRUE,H12=TRUE),\"Digitale Produktion\",\"\"))))))))))))))","v":""}]
[{"$f":"IF($A$4=TRUE,\"6 Module\",IF($A$6=TRUE,\"5 Module\",IF($A$8=TRUE,\"6 Module\",IF($A$10=TRUE,\"5 Module\"))))","v":"6 Module"},null,null,null,{"$f":"IF(AND(A4=TRUE,E6=TRUE),\"Mindestens 5 Module\",IF(AND(A4=TRUE,E8=TRUE),\"Mindestens 5 Module\",IF(AND(A4=TRUE,E10=TRUE),\"Mindestens 5 Module\",IF(AND(A4=TRUE,E12=TRUE),\"2 Module\",IF(AND(A6=TRUE,F6=TRUE),\"Mindestens 5 Module\",IF(AND(A6=TRUE,F8=TRUE),\"Mindestens 5 Module\",IF(AND(A6=TRUE,F10=TRUE),\"2 Module\",IF(AND(A6=TRUE,F12=TRUE),\"2 Module\",IF(AND(A8=TRUE,G6=TRUE),\"Mindestens 5 Module\",IF(AND(A8=TRUE,G8=TRUE),\"Mindestens 5 Module\",IF(AND(A10=TRUE,H6=TRUE),\"Mindestens 5 Module\",IF(AND(A10=TRUE,H8=TRUE),\"Mindestens 5 Module\",IF(AND(A10=TRUE,H10=TRUE),\"2 Module\",IF(AND(A10=TRUE,H12=TRUE),\"2 Module\",\"\"))))))))))))))","v":""}]
[]
[{"$f":"IF($A$4=TRUE,\"Methodische Produktentwicklung\",IF($A$6=TRUE,\"Technische Thermodynamik 2\",IF($A$8=TRUE,\"Konstruktion C\",IF($A$10=TRUE,\"Unternehmensplanspiel und\"))))","v":"Methodische Produktentwicklung"},null,null,null,{"$f":"IF(AND(A4=TRUE,E6=TRUE),\"Entwicklung elektrischer Antriebe\",IF(AND(A4=TRUE,E8=TRUE),\"Roboterbasierte Fertigung\",IF(AND(A4=TRUE,E10=TRUE),\"Angewandte künstliche Intelligenz\",IF(AND(A4=TRUE,E12=TRUE),\"Produktionsmittel und -logistik\",IF(AND(A6=TRUE,F6=TRUE),\"Anlagenbau\",IF(AND(A6=TRUE,F8=TRUE),\"Windenergieanlagen\",IF(AND(A6=TRUE,F10=TRUE),\"Finite-Elemente-Methode\",IF(AND(A6=TRUE,F12=TRUE),\"Produktionsmittel und -logistik\",IF(AND(A8=TRUE,G6=TRUE),\"Maschinendynamik\",IF(AND(A8=TRUE,G8=TRUE),\"Entwicklungs- und Konstruktionsmanagement\",IF(AND(A10=TRUE,H6=TRUE),\"Lasertechnik\",IF(AND(A10=TRUE,H8=TRUE),\"Wirtschaftsinformatik und Simulation\",IF(AND(A10=TRUE,H10=TRUE),\"Technische Thermodynamik 2\",IF(AND(A10=TRUE,H12=TRUE),\"Mechatronik\",\"\"))))))))))))))","v":""}]
[{"$f":"IF($A$4=TRUE,\"Softwareanwendungen im Maschinenbau\",IF($A$6=TRUE,\"Strömungslehre 2 und CFD\",IF($A$8=TRUE,\"Numerische Methoden der Mechanik\",IF($A$10=TRUE,\"     Investitionsrechnung\"))))","v":"Softwareanwendungen im Maschinenbau"},null,null,null,{"$f":"IF(AND(A4=TRUE,E6=TRUE),\"Batterietechnik\",IF(AND(A4=TRUE,E8=TRUE),\"Robotertechnik\",IF(AND(A4=TRUE,E10=TRUE),\"Big Data\",IF(AND(A4=TRUE,E12=TRUE),\"Produktionsplanung und -steuerung\",IF(AND(A6=TRUE,F6=TRUE),\"Apparatebau\",IF(AND(A6=TRUE,F8=TRUE),\"Solare Energiebereitstellung\",IF(AND(A6=TRUE,F10=TRUE),\"Methodische Produktentwicklung\",IF(AND(A6=TRUE,F12=TRUE),\"Produktionsplanung und -steuerung\",IF(AND(A8=TRUE,G6=TRUE),\"Leichtbau\",IF(AND(A8=TRUE,G8=TRUE),\"Kunststoffgerechte Konstruktion\",IF(AND(A10=TRUE,H6=TRUE),\"Fügetechnik\",IF(AND(A10=TRUE,H8=TRUE),\"Controlling und Digital Business\",IF(AND(A10=TRUE,H10=TRUE),\"Wärme- und Stoffübertragung\",IF(AND(A10=TRUE,H12=TRUE),\"Softwareanwendungen im Maschinenbau\",\"\"))))))))))))))","v":""}]
[{"$f":"IF($A$4=TRUE,\"Maschinelles Lernen und Datenanalyse\",IF($A$6=TRUE,\"Wärme- und Stoffübertragung\",IF($A$8=TRUE,\"Methodische Produktentwicklung\",IF($A$10=TRUE,\"Produktionsmittel und -logistik\"))))","v":"Maschinelles Lernen und Datenanalyse"},null,null,null,{"$f":"IF(AND(A4=TRUE,E6=TRUE),\"Elektrische Energieanlagen\",IF(AND(A4=TRUE,E8=TRUE),\"Bildverarbeitung\",IF(AND(A4=TRUE,E10=TRUE),\"Bildverarbeitung\",IF(AND(A6=TRUE,F6=TRUE),\"Anlagenautomatisierung\",IF(AND(A6=TRUE,F8=TRUE),\"Energetische Nutzung nachwachsender Rohstoffe\",IF(AND(A8=TRUE,G6=TRUE),\"Numerische Mathematik\",IF(AND(A8=TRUE,G8=TRUE),\"Methodische Produktentwicklung 2\",IF(AND(A10=TRUE,H6=TRUE),\"Kunststoffverarbeitung\",IF(AND(A10=TRUE,H8=TRUE),\"Prozessmanagement\",\"\")))))))))","v":""}]
[{"$f":"IF($A$4=TRUE,\"Autonome mobile Systeme\",IF($A$6=TRUE,\"Thermische Systemmodellierung\",IF($A$8=TRUE,\"Finite-Elemente-Methode\",IF($A$10=TRUE,\"Produktionsplanung und -steuerung\"))))","v":"Autonome mobile Systeme"},null,null,null,{"$f":"IF(AND(A4=TRUE,E6=TRUE),\"Technische Schwingungslehre\",IF(AND(A4=TRUE,E8=TRUE),\"Automatisierungstechnik\",IF(AND(A4=TRUE,E10=TRUE),\"Wartung und Instandhaltung\",IF(AND(A6=TRUE,F6=TRUE),\"Strömungsmaschinen\",IF(AND(A6=TRUE,F8=TRUE),\"Batterietechnik\",IF(AND(A8=TRUE,G6=TRUE),\"Konstruktive Festigkeit\",IF(AND(A8=TRUE,G8=TRUE),\"Konstruktion D\",IF(AND(A10=TRUE,H6=TRUE),\"Additive Fertigung\",IF(AND(A10=TRUE,H8=TRUE),\"Projektmanagement\",\"\")))))))))","v":""}]
[{"$f":"IF($A$4=TRUE,\"Mechatronik\",IF($A$6=TRUE,\"Studienarbeit\",IF($A$8=TRUE,\"Technische Schwingungslehre\",IF($A$10=TRUE,\"Werkzeugmaschinen\"))))","v":"Mechatronik"},null,null,null,{"$f":"IF(AND(A4=TRUE,E6=TRUE),\"Leichtbau\",IF(AND(A4=TRUE,E8=TRUE),\"Industrielle Logistik\",IF(AND(A4=TRUE,E10=TRUE),\"Service Management\",IF(AND(A6=TRUE,F6=TRUE),\"Kolbenmaschinen\",IF(AND(A6=TRUE,F8=TRUE),\"Thermische Speicher\",IF(AND(A8=TRUE,G6=TRUE),\"Simulation in der Produktentwicklung\",IF(AND(A8=TRUE,G8=TRUE),\"Additive Fertigung\",IF(AND(A10=TRUE,H6=TRUE),\"Zerspantechnik\",IF(AND(A10=TRUE,H8=TRUE),\"Managementmethoden in der digitalen Produktion\",\"\")))))))))","v":""}]
[{"$f":"IF($A$4=TRUE,\"Studienarbeit\",IF($A$6=TRUE,\"\",IF($A$8=TRUE,\"Konstruktion C (konstruktive Arbeit)\",IF($A$10=TRUE,\"Studienarbeit\"))))","v":"Studienarbeit"},null,null,null,{"$f":"IF(AND(A4=TRUE,E6=TRUE),\"Urbane Mobilität und Elektromobilität\",IF(AND(A4=TRUE,E8=TRUE),\"Angewandte künstliche Intelligenz\",IF(AND(A4=TRUE,E10=TRUE),\"Industrielle Logistik\",IF(AND(A6=TRUE,F6=TRUE),\"Thermische Energiesysteme\",IF(AND(A6=TRUE,F8=TRUE),\"Elektrische Energieanlagen\",IF(AND(A8=TRUE,G6=TRUE),\"Finite Elemente in der Technischen Physik\",IF(AND(A8=TRUE,G8=TRUE),\"Qualitätsmanagement und Qualitätsprüfung\",IF(AND(A10=TRUE,H6=TRUE),\"Umformtechnik\",IF(AND(A10=TRUE,H8=TRUE),\"Technisches Produktmanagement\",\"\")))))))))","v":""}]
[null,null,null,null,{"$f":"IF(AND(A4=TRUE,E6=TRUE),\"Fügetechnik\",IF(AND(A4=TRUE,E8=TRUE),\"Managementmethoden in der digitalen Produktion\",IF(AND(A4=TRUE,E10=TRUE),\"Additive Fertigung\",IF(AND(A4=TRUE,E12=TRUE),\"\",IF(AND(A6=TRUE,F6=TRUE),\"Kältetechnik\",IF(AND(A6=TRUE,F8=TRUE),\"Heizungs- und Klimatechnik\",IF(AND(A6=TRUE,F10=TRUE),\"\",IF(AND(A6=TRUE,F12=TRUE),\"\",IF(AND(A8=TRUE,G6=TRUE),\"Robotertechnik\",IF(AND(A8=TRUE,G8=TRUE),\"Konstruktionswerkstoffe\",IF(AND(A10=TRUE,H6=TRUE),\"CAD-CAM Prozesskette\",IF(AND(A10=TRUE,H8=TRUE),\"Ergonomie und Zeitmanagement\",IF(AND(A10=TRUE,H10=TRUE),\"\",IF(AND(A10=TRUE,H12=TRUE),\"\",\"\"))))))))))))))","v":""}]
[null,null,null,null,{"$f":"IF(AND(A4=TRUE,E6=TRUE),\"Wärme- und Stoffübertragung\",IF(AND(A4=TRUE,E8=TRUE),\"Vernetzte Produktion und Produktionsautomatisierung\",IF(AND(A4=TRUE,E10=TRUE),\"Qualitätsmanagement und Qualitätsprüfung\",IF(AND(A4=TRUE,E12=TRUE),\"\",IF(AND(A6=TRUE,F6=TRUE),\"Fügetechnik\",IF(AND(A6=TRUE,F8=TRUE),\"Thermodynamik der Gemische\",IF(AND(A6=TRUE,F10=TRUE),\"\",IF(AND(A6=TRUE,F12=TRUE),\"\",IF(AND(A8=TRUE,G6=TRUE),\"Softwareanwendungen im Maschinenbau\",IF(AND(A8=TRUE,G8=TRUE),\"Fluidtechnik\",IF(AND(A10=TRUE,H6=TRUE),\"Qualitätsmanagement und Qualitätsprüfung\",IF(AND(A10=TRUE,H8=TRUE),\"Unternehmensführung und Personalmanagement\",IF(AND(A10=TRUE,H10=TRUE),\"\",IF(AND(A10=TRUE,H12=TRUE),\"\",\"\"))))))))))))))","v":""}]
[null,null,null,null,{"$f":"IF(AND(A4=TRUE,E6=TRUE),\"Automatisierungstechnik\",IF(AND(A4=TRUE,E8=TRUE),\"Humanoide Robotik\",IF(AND(A4=TRUE,E10=TRUE),\"Humanoide Robotik\",IF(AND(A4=TRUE,E12=TRUE),\"\",IF(AND(A6=TRUE,F6=TRUE),\"Finite-Elemente-Methode\",IF(AND(A6=TRUE,F8=TRUE),\"Entwicklung elektrischer Antriebe\",IF(AND(A6=TRUE,F10=TRUE),\"\",IF(AND(A6=TRUE,F12=TRUE),\"\",IF(AND(A8=TRUE,G6=TRUE),\"Strukturoptimierung\",IF(AND(A8=TRUE,G8=TRUE),\"Fügetechnik\",IF(AND(A10=TRUE,H6=TRUE),\"Vernetzte Produktion und Produktionsautomatisierung\",IF(AND(A10=TRUE,H8=TRUE),\"Industrielle Logistik\",IF(AND(A10=TRUE,H10=TRUE),\"\",IF(AND(A10=TRUE,H12=TRUE),\"\",\"\"))))))))))))))","v":""}]
["Insgesamt müssen",null,null,null,{"$f":"IF(AND(A4=TRUE,E6=TRUE),\"Interdisziplinäres Projekt mit Bezug zum Schwerpunkt\",IF(AND(A4=TRUE,E8=TRUE),\"Interdisziplinäres Projekt mit Bezug zum Schwerpunkt\",IF(AND(A4=TRUE,E10=TRUE),\"Interdisziplinäres Projekt mit Bezug zum Schwerpunkt\",IF(AND(A4=TRUE,E12=TRUE),\"\",IF(AND(A6=TRUE,F6=TRUE),\"Interdisziplinäres Projekt mit Bezug zum Schwerpunkt\",IF(AND(A6=TRUE,F8=TRUE),\"Urbane Mobilität und Elektromobilität\",IF(AND(A6=TRUE,F10=TRUE),\"\",IF(AND(A6=TRUE,F12=TRUE),\"\",IF(AND(A8=TRUE,G6=TRUE),\"Interdisziplinäres Projekt mit Bezug zum Schwerpunkt\",IF(AND(A8=TRUE,G8=TRUE),\"Werkstoffprüfung\",IF(AND(A10=TRUE,H6=TRUE),\"Industrielle Logistik\",IF(AND(A10=TRUE,H8=TRUE),\"Interdisziplinäres Projekt mit Bezug zum Schwerpunkt\",IF(AND(A10=TRUE,H10=TRUE),\"\",IF(AND(A10=TRUE,H12=TRUE),\"\",\"\"))))))))))))))","v":""}]
["13 Module",null,null,null,{"$f":"IF(AND(A4=TRUE,E6=TRUE),\"\",IF(AND(A4=TRUE,E8=TRUE),\"\",IF(AND(A4=TRUE,E10=TRUE),\"\",IF(AND(A4=TRUE,E12=TRUE),\"\",IF(AND(A6=TRUE,F6=TRUE),\"\",IF(AND(A6=TRUE,F8=TRUE),\"Energieeffiziente Produktion\",IF(AND(A6=TRUE,F10=TRUE),\"\",IF(AND(A6=TRUE,F12=TRUE),\"\",IF(AND(A8=TRUE,G6=TRUE),\"\",IF(AND(A8=TRUE,G8=TRUE),\"Kreativmethoden in der Produktentwicklung\",IF(AND(A10=TRUE,H6=TRUE),\"Oberflächentechnik\",IF(AND(A10=TRUE,H8=TRUE),\"\",IF(AND(A10=TRUE,H10=TRUE),\"\",IF(AND(A10=TRUE,H12=TRUE),\"\",\"\"))))))))))))))","v":""}]
["gewählt werden",null,null,null,{"$f":"IF(AND(A4=TRUE,E6=TRUE),\"\",IF(AND(A4=TRUE,E8=TRUE),\"\",IF(AND(A4=TRUE,E10=TRUE),\"\",IF(AND(A4=TRUE,E12=TRUE),\"\",IF(AND(A6=TRUE,F6=TRUE),\"\",IF(AND(A6=TRUE,F8=TRUE),\"Finite-Elemente-Methode\",IF(AND(A6=TRUE,F10=TRUE),\"\",IF(AND(A6=TRUE,F12=TRUE),\"\",IF(AND(A8=TRUE,G6=TRUE),\"\",IF(AND(A8=TRUE,G8=TRUE),\"Konstruktive Festigkeit\",IF(AND(A10=TRUE,H6=TRUE),\"Energieeffiziente Produktion\",IF(AND(A10=TRUE,H8=TRUE),\"\",IF(AND(A10=TRUE,H10=TRUE),\"\",IF(AND(A10=TRUE,H12=TRUE),\"\",\"\"))))))))))))))","v":""}]
[null,null,null,null,{"$f":"IF(AND(A4=TRUE,E6=TRUE),\"\",IF(AND(A4=TRUE,E8=TRUE),\"\",IF(AND(A4=TRUE,E10=TRUE),\"\",IF(AND(A4=TRUE,E12=TRUE),\"\",IF(AND(A6=TRUE,F6=TRUE),\"\",IF(AND(A6=TRUE,F8=TRUE),\"Interdisziplinäres Projekt mit Bezug zum Schwerpunkt\",IF(AND(A6=TRUE,F10=TRUE),\"\",IF(AND(A6=TRUE,F12=TRUE),\"\",IF(AND(A8=TRUE,G6=TRUE),\"\",IF(AND(A8=TRUE,G8=TRUE),\"Interdisziplinäres Projekt mit Bezug zum Schwerpunkt\",IF(AND(A10=TRUE,H6=TRUE),\"Interdisziplinäres Projekt mit Bezug zum Schwerpunkt\",IF(AND(A10=TRUE,H8=TRUE),\"\",IF(AND(A10=TRUE,H10=TRUE),\"\",IF(AND(A10=TRUE,H12=TRUE),\"\",\"\"))))))))))))))","v":""}]
[]
["Wahlpflichtmodule Studienrichtung",null,null,{"$f":"IF(AND(A4=TRUE,E12=TRUE),\"Wahlpflichtmodule Studienrichtung\",IF(AND(A6=TRUE,F10=TRUE),\"Wahlpflichtmodule Studienrichtung\",IF(AND(A6=TRUE,F12=TRUE),\"Wahlpflichtmodule Studienrichtung\",IF(AND(A10=TRUE,H10=TRUE),\"Wahlpflichtmodule Studienrichtung\",IF(AND(A10=TRUE,H12=TRUE),\"Wahlpflichtmodule Studienschwerp.\",\"\")))))","v":""},null,null,{"$f":"IF(AND(A4=TRUE,E12=TRUE),\"Wahlpflichtmodule Studienschwerp.\",\"\")","v":""}]
[{"$f":"IF($A$4=TRUE,\"Digital Engineering and Mobility\",IF($A$6=TRUE,\"Energietechnik\",IF($A$8=TRUE,\"Entwicklung und Konstruktion\",IF($A$10=TRUE,\"Produktionstechnik -management\"))))","v":"Digital Engineering and Mobility"},null,null,{"$f":"IF(AND(A4=TRUE,E12=TRUE),\"Produktionstechnik -management\",IF(AND(A6=TRUE,F10=TRUE),\"Entwicklung und Konstruktion\",IF(AND(A6=TRUE,F12=TRUE),\"Produktionstechnik -management\",IF(AND(A10=TRUE,H10=TRUE),\"Energietechnik\",IF(AND(A10=TRUE,H12=TRUE),\"Robotik, Angew. künstl. Intelligenz\",\"\")))))","v":""},null,null,{"$f":"IF(AND(A4=TRUE,E12=TRUE),\"Robotik, Angew. künstl. Intelligenz\",\"\")","v":""}]
[{"$f":"IF(AND(A4=TRUE,E4=TRUE),\"7 Module\",IF(AND(A4=TRUE,E6=TRUE),\"Höchstens 2 Module\",IF(AND(A4=TRUE,E8=TRUE),\"Höchstens 2 Module\",IF(AND(A4=TRUE,E10=TRUE),\"Höchstens 2 Module\",IF(AND(A4=TRUE,E12=TRUE),\"1 Modul\",IF(AND(A6=TRUE,F4=TRUE),\"8 Module\",IF(AND(A6=TRUE,F6=TRUE),\"Höchstens 3 Module\",IF(AND(A6=TRUE,F8=TRUE),\"Höchstens 3 Module\",IF(AND(A6=TRUE,F10=TRUE),\"4 Module\",IF(AND(A6=TRUE,F12=TRUE),\"4 Module\",IF(AND(A8=TRUE,G4=TRUE),\"7 Module\",IF(AND(A8=TRUE,G6=TRUE),\"Höchstens 2 Module\",IF(AND(A8=TRUE,G8=TRUE),\"Höchstens 2 Module\",IF(AND(A10=TRUE,H4=TRUE),\"8 Module\",IF(AND(A10=TRUE,H6=TRUE),\"Höchstens 3 Module\",IF(AND(A10=TRUE,H8=TRUE),\"Höchstens 3 Module\",IF(AND(A10=TRUE,H10=TRUE),\"4 Module\",IF(AND(A10=TRUE,H12=TRUE),\"4 Module\"))))))))))))))))))","v":"7 Module"},null,null,{"$f":"IF(AND(A4=TRUE,E12=TRUE),\"2 Module\",IF(AND(A6=TRUE,F10=TRUE),\"2 Module\",IF(AND(A6=TRUE,F12=TRUE),\"2 Module\",IF(AND(A10=TRUE,H10=TRUE),\"2 Module\",IF(AND(A10=TRUE,H12=TRUE),\"2 Module\",\"\")))))","v":""},null,null,{"$f":"IF(AND(A4=TRUE,E12=TRUE),\"2 Module\",\"\")","v":""}]
[]
[{"$f":"IF(AND(A4=TRUE,E4=TRUE),\"Interdisziplinäres Projekt\",IF(AND(A4=TRUE,E6=TRUE),\"Interdisziplinäres Projekt\",IF(AND(A4=TRUE,E8=TRUE),\"Interdisziplinäres Projekt\",IF(AND(A4=TRUE,E10=TRUE),\"Interdisziplinäres Projekt\",IF(AND(A4=TRUE,E12=TRUE),\"Interdisziplinäres Projekt\",IF(AND(A6=TRUE,F4=TRUE),\"Interdisziplinäres Projekt\",IF(AND(A6=TRUE,F6=TRUE),\"Interdisziplinäres Projekt\",IF(AND(A6=TRUE,F8=TRUE),\"Interdisziplinäres Projekt\",IF(AND(A6=TRUE,F10=TRUE),\"Interdisziplinäres Projekt\",IF(AND(A6=TRUE,F12=TRUE),\"Interdisziplinäres Projekt\",IF(AND(A8=TRUE,G4=TRUE),\"Interdisziplinäres Projekt\",IF(AND(A8=TRUE,G6=TRUE),\"Interdisziplinäres Projekt\",IF(AND(A8=TRUE,G8=TRUE),\"Interdisziplinäres Projekt\",IF(AND(A10=TRUE,H4=TRUE),\"Interdisziplinäres Projekt\",IF(AND(A10=TRUE,H6=TRUE),\"Interdisziplinäres Projekt\",IF(AND(A10=TRUE,H8=TRUE),\"Interdisziplinäres Projekt\",IF(AND(A10=TRUE,H10=TRUE),\"Interdisziplinäres Projekt\",IF(AND(A10=TRUE,H12=TRUE),\"Interdisziplinäres Projekt\"))))))))))))))))))","v":"Interdisziplinäres Projekt"},null,null,{"$f":"IF(AND(A4=TRUE,E12=TRUE),\"Interdisziplinäres Projekt\",IF(AND(A6=TRUE,F10=TRUE),\"Interdisziplinäres Projekt\",IF(AND(A6=TRUE,F12=TRUE),\"Interdisziplinäres Projekt\",IF(AND(A10=TRUE,H10=TRUE),\"Interdisziplinäres Projekt\",IF(AND(A10=TRUE,H12=TRUE),\"Roboterbasierte Fertigung\",\"\")))))","v":""},null,null,{"$f":"IF(AND(A4=TRUE,E12=TRUE),\"Roboterbasierte Fertigung\",\"\")","v":""}]
[{"$f":"IF(AND(A4=TRUE,E4=TRUE),\"Entwicklung elektrischer Antriebe\",IF(AND(A4=TRUE,E6=TRUE),\"Roboterbasierte Fertigung\",IF(AND(A4=TRUE,E8=TRUE),\"Entwicklung elektrischer Antriebe\",IF(AND(A4=TRUE,E10=TRUE),\"Entwicklung elektrischer Antriebe\",IF(AND(A4=TRUE,E12=TRUE),\"Entwicklung elektrischer Antriebe\",IF(AND(A6=TRUE,F4=TRUE),\"Anlagenbau\",IF(AND(A6=TRUE,F6=TRUE),\"Windenergieanlagen\",IF(AND(A6=TRUE,F8=TRUE),\"Anlagenbau\",IF(AND(A6=TRUE,F10=TRUE),\"Anlagenbau\",IF(AND(A6=TRUE,F12=TRUE),\"Anlagenbau\",IF(AND(A8=TRUE,G4=TRUE),\"Konstruktion D\",IF(AND(A8=TRUE,G6=TRUE),\"Konstruktion D\",IF(AND(A8=TRUE,G8=TRUE),\"Simulation in der\",IF(AND(A10=TRUE,H4=TRUE),\"Projektmanagement\",IF(AND(A10=TRUE,H6=TRUE),\"Projektmanagement\",IF(AND(A10=TRUE,H8=TRUE),\"Lasertechnik\",IF(AND(A10=TRUE,H10=TRUE),\"Projektmanagement\",IF(AND(A10=TRUE,H12=TRUE),\"Projektmanagement\"))))))))))))))))))","v":"Entwicklung elektrischer Antriebe"},null,null,{"$f":"IF(AND(A4=TRUE,E12=TRUE),\"Projektmanagement\",IF(AND(A6=TRUE,F10=TRUE),\"Konstruktion D\",IF(AND(A6=TRUE,F12=TRUE),\"Projektmanagement\",IF(AND(A10=TRUE,H10=TRUE),\"Anlagenbau\",IF(AND(A10=TRUE,H12=TRUE),\"Robotertechnik\",\"\")))))","v":""},null,null,{"$f":"IF(AND(A4=TRUE,E12=TRUE),\"Robotertechnik\",\"\")","v":""}]
[{"$f":"IF(AND(A4=TRUE,E4=TRUE),\"Batterietechnik\",IF(AND(A4=TRUE,E6=TRUE),\"Robotertechnik\",IF(AND(A4=TRUE,E8=TRUE),\"Batterietechnik\",IF(AND(A4=TRUE,E10=TRUE),\"Batterietechnik\",IF(AND(A4=TRUE,E12=TRUE),\"Batterietechnik\",IF(AND(A6=TRUE,F4=TRUE),\"Apparatebau\",IF(AND(A6=TRUE,F6=TRUE),\"Solare Energiebereitstellung\",IF(AND(A6=TRUE,F8=TRUE),\"Apparatebau\",IF(AND(A6=TRUE,F10=TRUE),\"Apparatebau\",IF(AND(A6=TRUE,F12=TRUE),\"Apparatebau\",IF(AND(A8=TRUE,G4=TRUE),\"Simulation in der\",IF(AND(A8=TRUE,G6=TRUE),\"Methodische Produktentwicklung 2\",IF(AND(A8=TRUE,G8=TRUE),\"     Produktentwicklung\",IF(AND(A10=TRUE,H4=TRUE),\"Unternehmensführung und\",IF(AND(A10=TRUE,H6=TRUE),\"Unternehmensführung und\",IF(AND(A10=TRUE,H8=TRUE),\"Fügetechnik\",IF(AND(A10=TRUE,H10=TRUE),\"Unternehmensführung und\",IF(AND(A10=TRUE,H12=TRUE),\"Unternehmensführung und\"))))))))))))))))))","v":"Batterietechnik"},null,null,{"$f":"IF(AND(A4=TRUE,E12=TRUE),\"Unternehmensführung und\",IF(AND(A6=TRUE,F10=TRUE),\"Simulation in der\",IF(AND(A6=TRUE,F12=TRUE),\"Unternehmensführung und\",IF(AND(A10=TRUE,H10=TRUE),\"Apparatebau\",IF(AND(A10=TRUE,H12=TRUE),\"Bildverarbeitung\",\"\")))))","v":""},null,null,{"$f":"IF(AND(A4=TRUE,E12=TRUE),\"Bildverarbeitung\",\"\")","v":""}]
[{"$f":"IF(AND(A4=TRUE,E4=TRUE),\"Elektrische Energieanlagen\",IF(AND(A4=TRUE,E6=TRUE),\"Bildverarbeitung\",IF(AND(A4=TRUE,E8=TRUE),\"Elektrische Energieanlagen\",IF(AND(A4=TRUE,E10=TRUE),\"Elektrische Energieanlagen\",IF(AND(A4=TRUE,E12=TRUE),\"Elektrische Energieanlagen\",IF(AND(A6=TRUE,F4=TRUE),\"Anlagenautomatisierung\",IF(AND(A6=TRUE,F6=TRUE),\"Energetische Nutzung\",IF(AND(A6=TRUE,F8=TRUE),\"Anlagenautomatisierung\",IF(AND(A6=TRUE,F10=TRUE),\"Anlagenautomatisierung\",IF(AND(A6=TRUE,F12=TRUE),\"Anlagenautomatisierung\",IF(AND(A8=TRUE,G4=TRUE),\"     Produktentwicklung\",IF(AND(A8=TRUE,G6=TRUE),\"Entwicklungs- und\",IF(AND(A8=TRUE,G8=TRUE),\"Strukturoptimierung\",IF(AND(A10=TRUE,H4=TRUE),\"     Personalmanagement\",IF(AND(A10=TRUE,H6=TRUE),\"     Personalmanagement\",IF(AND(A10=TRUE,H8=TRUE),\"Kunststoffverarbeitung\",IF(AND(A10=TRUE,H10=TRUE),\"     Personalmanagement\",IF(AND(A10=TRUE,H12=TRUE),\"     Personalmanagement\"))))))))))))))))))","v":"Elektrische Energieanlagen"},null,null,{"$f":"IF(AND(A4=TRUE,E12=TRUE),\"     Personalmanagement\",IF(AND(A6=TRUE,F10=TRUE),\"     Produktentwicklung\",IF(AND(A6=TRUE,F12=TRUE),\"     Personalmanagement\",IF(AND(A10=TRUE,H10=TRUE),\"Anlagenautomatisierung\",IF(AND(A10=TRUE,H12=TRUE),\"Automatisierungstechnik\",\"\")))))","v":""},null,null,{"$f":"IF(AND(A4=TRUE,E12=TRUE),\"Automatisierungstechnik\",\"\")","v":""}]
[{"$f":"IF(AND(A4=TRUE,E4=TRUE),\"Technische Schwingungslehre\",IF(AND(A4=TRUE,E6=TRUE),\"Industrielle Logistik\",IF(AND(A4=TRUE,E8=TRUE),\"Technische Schwingungslehre\",IF(AND(A4=TRUE,E10=TRUE),\"Technische Schwingungslehre\",IF(AND(A4=TRUE,E12=TRUE),\"Technische Schwingungslehre\",IF(AND(A6=TRUE,F4=TRUE),\"Strömungsmaschinen\",IF(AND(A6=TRUE,F6=TRUE),\"     nachwachsender Rohstoffe\",IF(AND(A6=TRUE,F8=TRUE),\"Strömungsmaschinen\",IF(AND(A6=TRUE,F10=TRUE),\"Strömungsmaschinen\",IF(AND(A6=TRUE,F12=TRUE),\"Strömungsmaschinen\",IF(AND(A8=TRUE,G4=TRUE),\"Strukturoptimierung\",IF(AND(A8=TRUE,G6=TRUE),\"     Konstruktionsmanagement\",IF(AND(A8=TRUE,G8=TRUE),\"Maschinendynamik\",IF(AND(A10=TRUE,H4=TRUE),\"Lasertechnik\",IF(AND(A10=TRUE,H6=TRUE),\"Wirtschaftsinformatik und\",IF(AND(A10=TRUE,H8=TRUE),\"Additive Fertigung\",IF(AND(A10=TRUE,H10=TRUE),\"Lasertechnik\",IF(AND(A10=TRUE,H12=TRUE),\"Lasertechnik\"))))))))))))))))))","v":"Technische Schwingungslehre"},null,null,{"$f":"IF(AND(A4=TRUE,E12=TRUE),\"Lasertechnik\",IF(AND(A6=TRUE,F10=TRUE),\"Strukturoptimierung\",IF(AND(A6=TRUE,F12=TRUE),\"Lasertechnik\",IF(AND(A10=TRUE,H10=TRUE),\"Strömungsmaschinen\",IF(AND(A10=TRUE,H12=TRUE),\"Industrielle Logistik\",\"\")))))","v":""},null,null,{"$f":"IF(AND(A4=TRUE,E12=TRUE),\"Industrielle Logistik\",\"\")","v":""}]
[{"$f":"IF(AND(A4=TRUE,E4=TRUE),\"Leichtbau\",IF(AND(A4=TRUE,E6=TRUE),\"Angewandte künstliche Intelligenz\",IF(AND(A4=TRUE,E8=TRUE),\"Leichtbau\",IF(AND(A4=TRUE,E10=TRUE),\"Leichtbau\",IF(AND(A4=TRUE,E12=TRUE),\"Leichtbau\",IF(AND(A6=TRUE,F4=TRUE),\"Kolbenmaschinen\",IF(AND(A6=TRUE,F6=TRUE),\"Batterietechnik\",IF(AND(A6=TRUE,F8=TRUE),\"Kolbenmaschinen\",IF(AND(A6=TRUE,F10=TRUE),\"Kolbenmaschinen\",IF(AND(A6=TRUE,F12=TRUE),\"Kolbenmaschinen\",IF(AND(A8=TRUE,G4=TRUE),\"Methodische Produktentwicklung 2\",IF(AND(A8=TRUE,G6=TRUE),\"Kunststoffgerechte Konstruktion\",IF(AND(A8=TRUE,G8=TRUE),\"Leichtbau\",IF(AND(A10=TRUE,H4=TRUE),\"Fügetechnik\",IF(AND(A10=TRUE,H6=TRUE),\"     Simulation\",IF(AND(A10=TRUE,H8=TRUE),\"Zerspantechnik\",IF(AND(A10=TRUE,H10=TRUE),\"Fügetechnik\",IF(AND(A10=TRUE,H12=TRUE),\"Fügetechnik\"))))))))))))))))))","v":"Leichtbau"},null,null,{"$f":"IF(AND(A4=TRUE,E12=TRUE),\"Fügetechnik\",IF(AND(A6=TRUE,F10=TRUE),\"Methodische Produktentwicklung 2\",IF(AND(A6=TRUE,F12=TRUE),\"Fügetechnik\",IF(AND(A10=TRUE,H10=TRUE),\"Kolbenmaschinen\",IF(AND(A10=TRUE,H12=TRUE),\"Angewandte künstliche Intelligenz\",\"\")))))","v":""},null,null,{"$f":"IF(AND(A4=TRUE,E12=TRUE),\"Angewandte künstliche Intelligenz\",\"\")","v":""}]
[{"$f":"IF(AND(A4=TRUE,E4=TRUE),\"Urbane Mobilität und\",IF(AND(A4=TRUE,E6=TRUE),\"Managementmethoden in der\",IF(AND(A4=TRUE,E8=TRUE),\"Urbane Mobilität und\",IF(AND(A4=TRUE,E10=TRUE),\"Urbane Mobilität und\",IF(AND(A4=TRUE,E12=TRUE),\"Urbane Mobilität und\",IF(AND(A6=TRUE,F4=TRUE),\"Thermische Energiesysteme\",IF(AND(A6=TRUE,F6=TRUE),\"Thermische Speicher\",IF(AND(A6=TRUE,F8=TRUE),\"Thermische Energiesysteme\",IF(AND(A6=TRUE,F10=TRUE),\"Thermische Energiesysteme\",IF(AND(A6=TRUE,F12=TRUE),\"Thermische Energiesysteme\",IF(AND(A8=TRUE,G4=TRUE),\"Maschinendynamik\",IF(AND(A8=TRUE,G6=TRUE),\"Additive Fertigung\",IF(AND(A8=TRUE,G8=TRUE),\"Numerische Mathematik\",IF(AND(A10=TRUE,H4=TRUE),\"Kunststoffverarbeitung\",IF(AND(A10=TRUE,H6=TRUE),\"Controlling und Digital Business\",IF(AND(A10=TRUE,H8=TRUE),\"Umformtechnik\",IF(AND(A10=TRUE,H10=TRUE),\"Kunststoffverarbeitung\",IF(AND(A10=TRUE,H12=TRUE),\"Kunststoffverarbeitung\"))))))))))))))))))","v":"Urbane Mobilität und"},null,null,{"$f":"IF(AND(A4=TRUE,E12=TRUE),\"Kunststoffverarbeitung\",IF(AND(A6=TRUE,F10=TRUE),\"Maschinendynamik\",IF(AND(A6=TRUE,F12=TRUE),\"Kunststoffverarbeitung\",IF(AND(A10=TRUE,H10=TRUE),\"Thermische Energiesysteme\",IF(AND(A10=TRUE,H12=TRUE),\"Managementmethoden in der\",\"\")))))","v":""},null,null,{"$f":"IF(AND(A4=TRUE,E12=TRUE),\"Managementmethoden in der\",\"\")","v":""}]
[{"$f":"IF(AND(A4=TRUE,E4=TRUE),\"     Elektromobilität\",IF(AND(A4=TRUE,E6=TRUE),\"     digitalen Produktion\",IF(AND(A4=TRUE,E8=TRUE),\"     Elektromobilität\",IF(AND(A4=TRUE,E10=TRUE),\"     Elektromobilität\",IF(AND(A4=TRUE,E12=TRUE),\"     Elektromobilität\",IF(AND(A6=TRUE,F4=TRUE),\"Kältetechnik\",IF(AND(A6=TRUE,F6=TRUE),\"Elektrische Energieanlagen\",IF(AND(A6=TRUE,F8=TRUE),\"Kältetechnik\",IF(AND(A6=TRUE,F10=TRUE),\"Kältetechnik\",IF(AND(A6=TRUE,F12=TRUE),\"Kältetechnik\",IF(AND(A8=TRUE,G4=TRUE),\"Leichtbau\",IF(AND(A8=TRUE,G6=TRUE),\"Qualitätsmanagement und\",IF(AND(A8=TRUE,G8=TRUE),\"Finite Elemente in der Technischen\",IF(AND(A10=TRUE,H4=TRUE),\"Additive Fertigung\",IF(AND(A10=TRUE,H6=TRUE),\"Prozessmanagement\",IF(AND(A10=TRUE,H8=TRUE),\"CAD-CAM Prozesskette\",IF(AND(A10=TRUE,H10=TRUE),\"Additive Fertigung\",IF(AND(A10=TRUE,H12=TRUE),\"Additive Fertigung\"))))))))))))))))))","v":"     Elektromobilität"},null,null,{"$f":"IF(AND(A4=TRUE,E12=TRUE),\"Additive Fertigung\",IF(AND(A6=TRUE,F10=TRUE),\"Leichtbau\",IF(AND(A6=TRUE,F12=TRUE),\"Additive Fertigung\",IF(AND(A10=TRUE,H10=TRUE),\"Kältetechnik\",IF(AND(A10=TRUE,H12=TRUE),\"     digitalen Produktion\",\"\")))))","v":""},null,null,{"$f":"IF(AND(A4=TRUE,E12=TRUE),\"     digitalen Produktion\",\"\")","v":""}]
[{"$f":"IF(AND(A4=TRUE,E4=TRUE),\"Fügetechnik\",IF(AND(A4=TRUE,E6=TRUE),\"Vernetzte Produktion und\",IF(AND(A4=TRUE,E8=TRUE),\"Fügetechnik\",IF(AND(A4=TRUE,E10=TRUE),\"Fügetechnik\",IF(AND(A4=TRUE,E12=TRUE),\"Fügetechnik\",IF(AND(A6=TRUE,F4=TRUE),\"Fügetechnik\",IF(AND(A6=TRUE,F6=TRUE),\"Heizungs- und Klimatechnik\",IF(AND(A6=TRUE,F8=TRUE),\"Fügetechnik\",IF(AND(A6=TRUE,F10=TRUE),\"Fügetechnik\",IF(AND(A6=TRUE,F12=TRUE),\"Fügetechnik\",IF(AND(A8=TRUE,G4=TRUE),\"Numerische Mathematik\",IF(AND(A8=TRUE,G6=TRUE),\"     Qualitätsprüfung\",IF(AND(A8=TRUE,G8=TRUE),\"     Physik\",IF(AND(A10=TRUE,H4=TRUE),\"Zerspantechnik\",IF(AND(A10=TRUE,H6=TRUE),\"Managementmethoden in der\",IF(AND(A10=TRUE,H8=TRUE),\"Qualitätsmanagement und\",IF(AND(A10=TRUE,H10=TRUE),\"Zerspantechnik\",IF(AND(A10=TRUE,H12=TRUE),\"Zerspantechnik\"))))))))))))))))))","v":"Fügetechnik"},null,null,{"$f":"IF(AND(A4=TRUE,E12=TRUE),\"Zerspantechnik\",IF(AND(A6=TRUE,F10=TRUE),\"Numerische Mathematik\",IF(AND(A6=TRUE,F12=TRUE),\"Zerspantechnik\",IF(AND(A10=TRUE,H10=TRUE),\"Fügetechnik\",IF(AND(A10=TRUE,H12=TRUE),\"Vernetzte Produktion und\",\"\")))))","v":""},null,null,{"$f":"IF(AND(A4=TRUE,E12=TRUE),\"Vernetzte Produktion und\",\"\")","v":""}]
[{"$f":"IF(AND(A4=TRUE,E4=TRUE),\"Wärme- und Stoffübertragung\",IF(AND(A4=TRUE,E6=TRUE),\"     Produktionsautomatisierung\",IF(AND(A4=TRUE,E8=TRUE),\"Wärme- und Stoffübertragung\",IF(AND(A4=TRUE,E10=TRUE),\"Wärme- und Stoffübertragung\",IF(AND(A4=TRUE,E12=TRUE),\"Wärme- und Stoffübertragung\",IF(AND(A6=TRUE,F4=TRUE),\"Finite-Elemente-Methode\",IF(AND(A6=TRUE,F6=TRUE),\"Thermodynamik der Gemische\",IF(AND(A6=TRUE,F8=TRUE),\"Ausgewählte Themen der\",IF(AND(A6=TRUE,F10=TRUE),\"Windenergieanlagen\",IF(AND(A6=TRUE,F12=TRUE),\"Finite-Elemente-Methode\",IF(AND(A8=TRUE,G4=TRUE),\"Konstruktive Festigkeit\",IF(AND(A8=TRUE,G6=TRUE),\"Konstruktionswerkstoffe\",IF(AND(A8=TRUE,G8=TRUE),\"Robotertechnik\",IF(AND(A10=TRUE,H4=TRUE),\"Umformtechnik\",IF(AND(A10=TRUE,H6=TRUE),\"     digitalen Produktion\",IF(AND(A10=TRUE,H8=TRUE),\"     Qualitätsprüfung\",IF(AND(A10=TRUE,H10=TRUE),\"Umformtechnik\",IF(AND(A10=TRUE,H12=TRUE),\"Umformtechnik\"))))))))))))))))))","v":"Wärme- und Stoffübertragung"},null,null,{"$f":"IF(AND(A4=TRUE,E12=TRUE),\"Umformtechnik\",IF(AND(A6=TRUE,F10=TRUE),\"Konstruktive Festigkeit\",IF(AND(A6=TRUE,F12=TRUE),\"Umformtechnik\",IF(AND(A10=TRUE,H10=TRUE),\"Finite-Elemente-Methode\",IF(AND(A10=TRUE,H12=TRUE),\"     Produktionsautomatisierung\",\"\")))))","v":""},null,null,{"$f":"IF(AND(A4=TRUE,E12=TRUE),\"     Produktionsautomatisierung\",\"\")","v":""}]
[{"$f":"IF(AND(A4=TRUE,E4=TRUE),\"Automatisierungstechnik\",IF(AND(A4=TRUE,E6=TRUE),\"Humanoide Robotik\",IF(AND(A4=TRUE,E8=TRUE),\"Big Data\",IF(AND(A4=TRUE,E10=TRUE),\"Automatisierungstechnik\",IF(AND(A4=TRUE,E12=TRUE),\"Big Data\",IF(AND(A6=TRUE,F4=TRUE),\"Windenergieanlagen\",IF(AND(A6=TRUE,F6=TRUE),\"Entwicklung elektrischer Antriebe\",IF(AND(A6=TRUE,F8=TRUE),\"     Energietechnik\",IF(AND(A6=TRUE,F10=TRUE),\"Solare Energiebereitstellung\",IF(AND(A6=TRUE,F12=TRUE),\"Windenergieanlagen\",IF(AND(A8=TRUE,G4=TRUE),\"Finite Elemente in der Technischen\",IF(AND(A8=TRUE,G6=TRUE),\"Fluidtechnik\",IF(AND(A8=TRUE,G8=TRUE),\"Softwareanwendungen im\",IF(AND(A10=TRUE,H4=TRUE),\"CAD-CAM Prozesskette\",IF(AND(A10=TRUE,H6=TRUE),\"Technisches Produktmanagement\",IF(AND(A10=TRUE,H8=TRUE),\"Vernetzte Produktion und\",IF(AND(A10=TRUE,H10=TRUE),\"CAD-CAM Prozesskette\",IF(AND(A10=TRUE,H12=TRUE),\"CAD-CAM Prozesskette\"))))))))))))))))))","v":"Automatisierungstechnik"},null,null,{"$f":"IF(AND(A4=TRUE,E12=TRUE),\"CAD-CAM Prozesskette\",IF(AND(A6=TRUE,F10=TRUE),\"Finite Elemente in der Technischen\",IF(AND(A6=TRUE,F12=TRUE),\"CAD-CAM Prozesskette\",IF(AND(A10=TRUE,H10=TRUE),\"Windenergieanlagen\",IF(AND(A10=TRUE,H12=TRUE),\"Humanoide Robotik\",\"\")))))","v":""},null,null,{"$f":"IF(AND(A4=TRUE,E12=TRUE),\"Humanoide Robotik\",\"\")","v":""}]
[{"$f":"IF(AND(A4=TRUE,E4=TRUE),\"Roboterbasierte Fertigung\",IF(AND(A4=TRUE,E6=TRUE),\"Big Data\",IF(AND(A4=TRUE,E8=TRUE),\"Wartung und Instandhaltung\",IF(AND(A4=TRUE,E10=TRUE),\"Roboterbasierte Fertigung\",IF(AND(A4=TRUE,E12=TRUE),\"Wartung und Instandhaltung\",IF(AND(A6=TRUE,F4=TRUE),\"Solare Energiebereitstellung\",IF(AND(A6=TRUE,F6=TRUE),\"Urbane Mobilität und\",IF(AND(A6=TRUE,F8=TRUE),\"\",IF(AND(A6=TRUE,F10=TRUE),\"Energetische Nutzung\",IF(AND(A6=TRUE,F12=TRUE),\"Solare Energiebereitstellung\",IF(AND(A8=TRUE,G4=TRUE),\"     Physik\",IF(AND(A8=TRUE,G6=TRUE),\"Fügetechnik\",IF(AND(A8=TRUE,G8=TRUE),\"     Maschinenbau\",IF(AND(A10=TRUE,H4=TRUE),\"Qualitätsmanagement und\",IF(AND(A10=TRUE,H6=TRUE),\"Ergonomie und Zeitmanagement\",IF(AND(A10=TRUE,H8=TRUE),\"     Produktionsautomatisierung\",IF(AND(A10=TRUE,H10=TRUE),\"Qualitätsmanagement und\",IF(AND(A10=TRUE,H12=TRUE),\"Qualitätsmanagement und\"))))))))))))))))))","v":"Roboterbasierte Fertigung"},null,null,{"$f":"IF(AND(A4=TRUE,E12=TRUE),\"Qualitätsmanagement und\",IF(AND(A6=TRUE,F10=TRUE),\"     Physik\",IF(AND(A6=TRUE,F12=TRUE),\"Qualitätsmanagement und\",IF(AND(A10=TRUE,H10=TRUE),\"Solare Energiebereitstellung\",IF(AND(A10=TRUE,H12=TRUE),\"Interdisziplinäres Projekt mit Bezug\",\"\")))))","v":""},null,null,{"$f":"IF(AND(A4=TRUE,E12=TRUE),\"Interdisziplinäres Projekt mit Bezug\",\"\")","v":""}]
[{"$f":"IF(AND(A4=TRUE,E4=TRUE),\"Robotertechnik\",IF(AND(A4=TRUE,E6=TRUE),\"Wartung und Instandhaltung\",IF(AND(A4=TRUE,E8=TRUE),\"Service Management\",IF(AND(A4=TRUE,E10=TRUE),\"Robotertechnik\",IF(AND(A4=TRUE,E12=TRUE),\"Service Management\",IF(AND(A6=TRUE,F4=TRUE),\"Energetische Nutzung\",IF(AND(A6=TRUE,F6=TRUE),\"     Elektromobilität\",IF(AND(A6=TRUE,F8=TRUE),\"\",IF(AND(A6=TRUE,F10=TRUE),\"     nachwachsender Rohstoffe\",IF(AND(A6=TRUE,F12=TRUE),\"Energetische Nutzung\",IF(AND(A8=TRUE,G4=TRUE),\"Robotertechnik\",IF(AND(A8=TRUE,G6=TRUE),\"Werkstoffprüfung\",IF(AND(A8=TRUE,G8=TRUE),\"Ausgewählte Themen in\",IF(AND(A10=TRUE,H4=TRUE),\"     Qualitätsprüfung\",IF(AND(A10=TRUE,H6=TRUE),\"Ausgewählte Themen in Produk-\",IF(AND(A10=TRUE,H8=TRUE),\"Oberflächentechnik\",IF(AND(A10=TRUE,H10=TRUE),\"     Qualitätsprüfung\",IF(AND(A10=TRUE,H12=TRUE),\"     Qualitätsprüfung\"))))))))))))))))))","v":"Robotertechnik"},null,null,{"$f":"IF(AND(A4=TRUE,E12=TRUE),\"     Qualitätsprüfung\",IF(AND(A6=TRUE,F10=TRUE),\"Robotertechnik\",IF(AND(A6=TRUE,F12=TRUE),\"     Qualitätsprüfung\",IF(AND(A10=TRUE,H10=TRUE),\"Energetische Nutzung\",IF(AND(A10=TRUE,H12=TRUE),\"     zum Schwerpunkt\",\"\")))))","v":""},null,null,{"$f":"IF(AND(A4=TRUE,E12=TRUE),\"     zum Schwerpunkt\",\"\")","v":""}]
[{"$f":"IF(AND(A4=TRUE,E4=TRUE),\"Bildverarbeitung\",IF(AND(A4=TRUE,E6=TRUE),\"Service Management\",IF(AND(A4=TRUE,E8=TRUE),\"Additive Fertigung\",IF(AND(A4=TRUE,E10=TRUE),\"Managementmethoden in der\",IF(AND(A4=TRUE,E12=TRUE),\"Additive Fertigung\",IF(AND(A6=TRUE,F4=TRUE),\"     nachwachsender Rohstoffe\",IF(AND(A6=TRUE,F6=TRUE),\"Energieeffiziente Produktion\",IF(AND(A6=TRUE,F8=TRUE),\"\",IF(AND(A6=TRUE,F10=TRUE),\"Batterietechnik\",IF(AND(A6=TRUE,F12=TRUE),\"     nachwachsender Rohstoffe\",IF(AND(A8=TRUE,G4=TRUE),\"Softwareanwendungen im\",IF(AND(A8=TRUE,G6=TRUE),\"Kreativmethoden in der\",IF(AND(A8=TRUE,G8=TRUE),\"     Entwicklung und Konstruktion\",IF(AND(A10=TRUE,H4=TRUE),\"Vernetzte Produktion und\",IF(AND(A10=TRUE,H6=TRUE),\"     tionstechnik und -management\",IF(AND(A10=TRUE,H8=TRUE),\"Energieeffiziente Produktion\",IF(AND(A10=TRUE,H10=TRUE),\"Vernetzte Produktion und\",IF(AND(A10=TRUE,H12=TRUE),\"Vernetzte Produktion und\"))))))))))))))))))","v":"Bildverarbeitung"},null,null,{"$f":"IF(AND(A4=TRUE,E12=TRUE),\"Vernetzte Produktion und\",IF(AND(A6=TRUE,F10=TRUE),\"Softwareanwendungen im\",IF(AND(A6=TRUE,F12=TRUE),\"Vernetzte Produktion und\",IF(AND(A10=TRUE,H10=TRUE),\"     nachwachsender Rohstoffe\",IF(AND(A10=TRUE,H12=TRUE),\"\",\"\")))))","v":""}]
[{"$f":"IF(AND(A4=TRUE,E4=TRUE),\"Industrielle Logistik\",IF(AND(A4=TRUE,E6=TRUE),\"Additive Fertigung\",IF(AND(A4=TRUE,E8=TRUE),\"Qualitätsmanagement und\",IF(AND(A4=TRUE,E10=TRUE),\"     digitalen Produktion\",IF(AND(A4=TRUE,E12=TRUE),\"Qualitätsmanagement und\",IF(AND(A6=TRUE,F4=TRUE),\"Batterietechnik\",IF(AND(A6=TRUE,F6=TRUE),\"Ausgewählte Themen der\",IF(AND(A6=TRUE,F8=TRUE),\"\",IF(AND(A6=TRUE,F10=TRUE),\"Thermische Speicher\",IF(AND(A6=TRUE,F12=TRUE),\"Batterietechnik\",IF(AND(A8=TRUE,G4=TRUE),\"     Maschinenbau\",IF(AND(A8=TRUE,G6=TRUE),\"     Produktentwicklung\",IF(AND(A8=TRUE,G8=TRUE),\"\",IF(AND(A10=TRUE,H4=TRUE),\"     Produktionsautomatisierung\",IF(AND(A10=TRUE,H6=TRUE),\"\",IF(AND(A10=TRUE,H8=TRUE),\"Ausgewählte Themen in Produk-\",IF(AND(A10=TRUE,H10=TRUE),\"     Produktionsautomatisierung\",IF(AND(A10=TRUE,H12=TRUE),\"     Produktionsautomatisierung\"))))))))))))))))))","v":"Industrielle Logistik"},null,null,{"$f":"IF(AND(A4=TRUE,E12=TRUE),\"     Produktionsautomatisierung\",IF(AND(A6=TRUE,F10=TRUE),\"     Maschinenbau\",IF(AND(A6=TRUE,F12=TRUE),\"     Produktionsautomatisierung\",IF(AND(A10=TRUE,H10=TRUE),\"Batterietechnik\",IF(AND(A10=TRUE,H12=TRUE),\"\",\"\")))))","v":""}]
[{"$f":"IF(AND(A4=TRUE,E4=TRUE),\"Angewandte künstliche Intelligenz\",IF(AND(A4=TRUE,E6=TRUE),\"Qualitätsmanagement und\",IF(AND(A4=TRUE,E8=TRUE),\"     Qualitätsprüfung\",IF(AND(A4=TRUE,E10=TRUE),\"Vernetzte Produktion und\",IF(AND(A4=TRUE,E12=TRUE),\"     Qualitätsprüfung\",IF(AND(A6=TRUE,F4=TRUE),\"Thermische Speicher\",IF(AND(A6=TRUE,F6=TRUE),\"     Energietechnik\",IF(AND(A6=TRUE,F8=TRUE),\"\",IF(AND(A6=TRUE,F10=TRUE),\"Elektrische Energieanlagen\",IF(AND(A6=TRUE,F12=TRUE),\"Thermische Speicher\",IF(AND(A8=TRUE,G4=TRUE),\"Entwicklungs- und\",IF(AND(A8=TRUE,G6=TRUE),\"Ausgewählte Themen in\",IF(AND(A8=TRUE,G8=TRUE),\"\",IF(AND(A10=TRUE,H4=TRUE),\"Industrielle Logistik\",IF(AND(A10=TRUE,H6=TRUE),\"\",IF(AND(A10=TRUE,H8=TRUE),\"     tionstechnik und -management\",IF(AND(A10=TRUE,H10=TRUE),\"Industrielle Logistik\",IF(AND(A10=TRUE,H12=TRUE),\"Industrielle Logistik\"))))))))))))))))))","v":"Angewandte künstliche Intelligenz"},null,null,{"$f":"IF(AND(A4=TRUE,E12=TRUE),\"Industrielle Logistik\",IF(AND(A6=TRUE,F10=TRUE),\"Entwicklungs- und\",IF(AND(A6=TRUE,F12=TRUE),\"Industrielle Logistik\",IF(AND(A10=TRUE,H10=TRUE),\"Thermische Speicher\",IF(AND(A10=TRUE,H12=TRUE),\"\",\"\")))))","v":""}]
[{"$f":"IF(AND(A4=TRUE,E4=TRUE),\"Managementmethoden in der\",IF(AND(A4=TRUE,E6=TRUE),\"     Qualitätsprüfung\",IF(AND(A4=TRUE,E8=TRUE),\"Ausgewählte Themen in Digital\",IF(AND(A4=TRUE,E10=TRUE),\"     Produktionsautomatisierung\",IF(AND(A4=TRUE,E12=TRUE),\"Ausgewählte Themen in Digital\",IF(AND(A6=TRUE,F4=TRUE),\"Elektrische Energieanlagen\",IF(AND(A6=TRUE,F6=TRUE),\"\",IF(AND(A6=TRUE,F8=TRUE),\"\",IF(AND(A6=TRUE,F10=TRUE),\"Heizungs- und Klimatechnik\",IF(AND(A6=TRUE,F12=TRUE),\"Elektrische Energieanlagen\",IF(AND(A8=TRUE,G4=TRUE),\"     Konstruktionsmanagement\",IF(AND(A8=TRUE,G6=TRUE),\"     Entwicklung und Konstruktion\",IF(AND(A8=TRUE,G8=TRUE),\"\",IF(AND(A10=TRUE,H4=TRUE),\"Oberflächentechnik\",IF(AND(A10=TRUE,H6=TRUE),\"\",IF(AND(A10=TRUE,H8=TRUE),\"\",IF(AND(A10=TRUE,H10=TRUE),\"Oberflächentechnik\",IF(AND(A10=TRUE,H12=TRUE),\"Oberflächentechnik\"))))))))))))))))))","v":"Managementmethoden in der"},null,null,{"$f":"IF(AND(A4=TRUE,E12=TRUE),\"Oberflächentechnik\",IF(AND(A6=TRUE,F10=TRUE),\"     Konstruktionsmanagement\",IF(AND(A6=TRUE,F12=TRUE),\"Oberflächentechnik\",IF(AND(A10=TRUE,H10=TRUE),\"Elektrische Energieanlagen\",IF(AND(A10=TRUE,H12=TRUE),\"\",\"\")))))","v":""},null,null,"Wahlweise können bis zu 2 Wahl-"]
[{"$f":"IF(AND(A4=TRUE,E4=TRUE),\"     digitalen Produktion\",IF(AND(A4=TRUE,E6=TRUE),\"Ausgewählte Themen in Digital\",IF(AND(A4=TRUE,E8=TRUE),\"     Engineering and Mobility\",IF(AND(A4=TRUE,E10=TRUE),\"Ausgewählte Themen in Digital\",IF(AND(A4=TRUE,E12=TRUE),\"     Engineering and Mobility\",IF(AND(A6=TRUE,F4=TRUE),\"Heizungs- und Klimatechnik\",IF(AND(A6=TRUE,F6=TRUE),\"\",IF(AND(A6=TRUE,F8=TRUE),\"\",IF(AND(A6=TRUE,F10=TRUE),\"Thermodynamik der Gemische\",IF(AND(A6=TRUE,F12=TRUE),\"Heizungs- und Klimatechnik\",IF(AND(A8=TRUE,G4=TRUE),\"Kunststoffgerechte Konstruktion\",IF(AND(A8=TRUE,G6=TRUE),\"\",IF(AND(A8=TRUE,G8=TRUE),\"\",IF(AND(A10=TRUE,H4=TRUE),\"Energieeffiziente Produktion\",IF(AND(A10=TRUE,H6=TRUE),\"\",IF(AND(A10=TRUE,H8=TRUE),\"\",IF(AND(A10=TRUE,H10=TRUE),\"Energieeffiziente Produktion\",IF(AND(A10=TRUE,H12=TRUE),\"Energieeffiziente Produktion\"))))))))))))))))))","v":"     digitalen Produktion"},null,null,{"$f":"IF(AND(A4=TRUE,E12=TRUE),\"Energieeffiziente Produktion\",IF(AND(A6=TRUE,F10=TRUE),\"Kunststoffgerechte Konstruktion\",IF(AND(A6=TRUE,F12=TRUE),\"Energieeffiziente Produktion\",IF(AND(A10=TRUE,H10=TRUE),\"Heizungs- und Klimatechnik\",IF(AND(A10=TRUE,H12=TRUE),\"\",\"\")))))","v":""},null,null,"pflichtmodule der gewählten Studien-"]
[{"$f":"IF(AND(A4=TRUE,E4=TRUE),\"Vernetzte Produktion und\",IF(AND(A4=TRUE,E6=TRUE),\"     Engineering and Mobility\",IF(AND(A4=TRUE,E8=TRUE),\"\",IF(AND(A4=TRUE,E10=TRUE),\"     Engineering and Mobility\",IF(AND(A4=TRUE,E12=TRUE),\"\",IF(AND(A6=TRUE,F4=TRUE),\"Thermodynamik der Gemische\",IF(AND(A6=TRUE,F6=TRUE),\"\",IF(AND(A6=TRUE,F8=TRUE),\"\",IF(AND(A6=TRUE,F10=TRUE),\"Entwicklung elektrischer Antriebe\",IF(AND(A6=TRUE,F12=TRUE),\"Thermodynamik der Gemische\",IF(AND(A8=TRUE,G4=TRUE),\"Additive Fertigung\",IF(AND(A8=TRUE,G6=TRUE),\"\",IF(AND(A8=TRUE,G8=TRUE),\"\",IF(AND(A10=TRUE,H4=TRUE),\"Wirtschaftsinformatik und\",IF(AND(A10=TRUE,H6=TRUE),\"\",IF(AND(A10=TRUE,H8=TRUE),\"\",IF(AND(A10=TRUE,H10=TRUE),\"Wirtschaftsinformatik und\",IF(AND(A10=TRUE,H12=TRUE),\"Wirtschaftsinformatik und\"))))))))))))))))))","v":"Vernetzte Produktion und"},null,null,{"$f":"IF(AND(A4=TRUE,E12=TRUE),\"Wirtschaftsinformatik und\",IF(AND(A6=TRUE,F10=TRUE),\"Additive Fertigung\",IF(AND(A6=TRUE,F12=TRUE),\"Wirtschaftsinformatik und\",IF(AND(A10=TRUE,H10=TRUE),\"Thermodynamik der Gemische\",IF(AND(A10=TRUE,H12=TRUE),\"\",\"\")))))","v":""},null,null,"richtung (ganz linke Spalte) gegen "]
[{"$f":"IF(AND(A4=TRUE,E4=TRUE),\"     Produktionsautomatisierung\",IF(AND(A4=TRUE,E6=TRUE),\"\",IF(AND(A4=TRUE,E8=TRUE),\"\",IF(AND(A4=TRUE,E10=TRUE),\"\",IF(AND(A4=TRUE,E12=TRUE),\"\",IF(AND(A6=TRUE,F4=TRUE),\"Entwicklung elektrischer Antriebe\",IF(AND(A6=TRUE,F6=TRUE),\"\",IF(AND(A6=TRUE,F8=TRUE),\"\",IF(AND(A6=TRUE,F10=TRUE),\"Urbane Mobilität und\",IF(AND(A6=TRUE,F12=TRUE),\"Entwicklung elektrischer Antriebe\",IF(AND(A8=TRUE,G4=TRUE),\"Qualitätsmanagement und\",IF(AND(A8=TRUE,G6=TRUE),\"\",IF(AND(A8=TRUE,G8=TRUE),\"\",IF(AND(A10=TRUE,H4=TRUE),\"     Simulation\",IF(AND(A10=TRUE,H6=TRUE),\"\",IF(AND(A10=TRUE,H8=TRUE),\"\",IF(AND(A10=TRUE,H10=TRUE),\"     Simulation\",IF(AND(A10=TRUE,H12=TRUE),\"     Simulation\"))))))))))))))))))","v":"     Produktionsautomatisierung"},null,null,{"$f":"IF(AND(A4=TRUE,E12=TRUE),\"     Simulation\",IF(AND(A6=TRUE,F10=TRUE),\"Qualitätsmanagement und\",IF(AND(A6=TRUE,F12=TRUE),\"     Simulation\",IF(AND(A10=TRUE,H10=TRUE),\"Entwicklung elektrischer Antriebe\",IF(AND(A10=TRUE,H12=TRUE),\"\",\"\")))))","v":""},null,null,"andere Module des Studiengangs "]
[{"$f":"IF(AND(A4=TRUE,E4=TRUE),\"Humanoide Robotik\",IF(AND(A4=TRUE,E6=TRUE),\"\",IF(AND(A4=TRUE,E8=TRUE),\"\",IF(AND(A4=TRUE,E10=TRUE),\"\",IF(AND(A4=TRUE,E12=TRUE),\"\",IF(AND(A6=TRUE,F4=TRUE),\"Urbane Mobilität und\",IF(AND(A6=TRUE,F6=TRUE),\"\",IF(AND(A6=TRUE,F8=TRUE),\"\",IF(AND(A6=TRUE,F10=TRUE),\"     Elektromobilität\",IF(AND(A6=TRUE,F12=TRUE),\"Urbane Mobilität und\",IF(AND(A8=TRUE,G4=TRUE),\"     Qualitätsprüfung\",IF(AND(A8=TRUE,G6=TRUE),\"\",IF(AND(A8=TRUE,G8=TRUE),\"\",IF(AND(A10=TRUE,H4=TRUE),\"Controlling und Digital Business\",IF(AND(A10=TRUE,H6=TRUE),\"\",IF(AND(A10=TRUE,H8=TRUE),\"\",IF(AND(A10=TRUE,H10=TRUE),\"Controlling und Digital Business\",IF(AND(A10=TRUE,H12=TRUE),\"Controlling und Digital Business\"))))))))))))))))))","v":"Humanoide Robotik"},null,null,{"$f":"IF(AND(A4=TRUE,E12=TRUE),\"Controlling und Digital Business\",IF(AND(A6=TRUE,F10=TRUE),\"     Qualitätsprüfung\",IF(AND(A6=TRUE,F12=TRUE),\"Controlling und Digital Business\",IF(AND(A10=TRUE,H10=TRUE),\"Urbane Mobilität und\",IF(AND(A10=TRUE,H12=TRUE),\"\",\"\")))))","v":""},null,null,"Maschinenbau und Produktion oder "]
[{"$f":"IF(AND(A4=TRUE,E4=TRUE),\"Big Data\",IF(AND(A4=TRUE,E6=TRUE),\"\",IF(AND(A4=TRUE,E8=TRUE),\"\",IF(AND(A4=TRUE,E10=TRUE),\"\",IF(AND(A4=TRUE,E12=TRUE),\"\",IF(AND(A6=TRUE,F4=TRUE),\"     Elektromobilität\",IF(AND(A6=TRUE,F6=TRUE),\"\",IF(AND(A6=TRUE,F8=TRUE),\"\",IF(AND(A6=TRUE,F10=TRUE),\"Energieeffiziente Produktion\",IF(AND(A6=TRUE,F12=TRUE),\"     Elektromobilität\",IF(AND(A8=TRUE,G4=TRUE),\"Konstruktionswerkstoffe\",IF(AND(A8=TRUE,G6=TRUE),\"\",IF(AND(A8=TRUE,G8=TRUE),\"\",IF(AND(A10=TRUE,H4=TRUE),\"Prozessmanagement\",IF(AND(A10=TRUE,H6=TRUE),\"\",IF(AND(A10=TRUE,H8=TRUE),\"\",IF(AND(A10=TRUE,H10=TRUE),\"Prozessmanagement\",IF(AND(A10=TRUE,H12=TRUE),\"Prozessmanagement\"))))))))))))))))))","v":"Big Data"},null,null,{"$f":"IF(AND(A4=TRUE,E12=TRUE),\"Prozessmanagement\",IF(AND(A6=TRUE,F10=TRUE),\"Konstruktionswerkstoffe\",IF(AND(A6=TRUE,F12=TRUE),\"Prozessmanagement\",IF(AND(A10=TRUE,H10=TRUE),\"     Elektromobilität\",IF(AND(A10=TRUE,H12=TRUE),\"\",\"\")))))","v":""},null,null,"aus dem gesamten Bachelorangebot "]
[{"$f":"IF(AND(A4=TRUE,E4=TRUE),\"Wartung und Instandhaltung\",IF(AND(A4=TRUE,E6=TRUE),\"\",IF(AND(A4=TRUE,E8=TRUE),\"\",IF(AND(A4=TRUE,E10=TRUE),\"\",IF(AND(A4=TRUE,E12=TRUE),\"\",IF(AND(A6=TRUE,F4=TRUE),\"Energieeffiziente Produktion\",IF(AND(A6=TRUE,F6=TRUE),\"\",IF(AND(A6=TRUE,F8=TRUE),\"\",IF(AND(A6=TRUE,F10=TRUE),\"Ausgewählte Themen der\",IF(AND(A6=TRUE,F12=TRUE),\"Energieeffiziente Produktion\",IF(AND(A8=TRUE,G4=TRUE),\"Fluidtechnik\",IF(AND(A8=TRUE,G6=TRUE),\"\",IF(AND(A8=TRUE,G8=TRUE),\"\",IF(AND(A10=TRUE,H4=TRUE),\"Managementmethoden in der\",IF(AND(A10=TRUE,H6=TRUE),\"\",IF(AND(A10=TRUE,H8=TRUE),\"\",IF(AND(A10=TRUE,H10=TRUE),\"Managementmethoden in der\",IF(AND(A10=TRUE,H12=TRUE),\"Managementmethoden in der\"))))))))))))))))))","v":"Wartung und Instandhaltung"},null,null,{"$f":"IF(AND(A4=TRUE,E12=TRUE),\"Managementmethoden in der\",IF(AND(A6=TRUE,F10=TRUE),\"Fluidtechnik\",IF(AND(A6=TRUE,F12=TRUE),\"Managementmethoden in der\",IF(AND(A10=TRUE,H10=TRUE),\"Energieeffiziente Produktion\",IF(AND(A10=TRUE,H12=TRUE),\"\",\"\")))))","v":""},null,null,"der HAW getauscht werden."]
[{"$f":"IF(AND(A4=TRUE,E4=TRUE),\"Service Management\",IF(AND(A4=TRUE,E6=TRUE),\"\",IF(AND(A4=TRUE,E8=TRUE),\"\",IF(AND(A4=TRUE,E10=TRUE),\"\",IF(AND(A4=TRUE,E12=TRUE),\"\",IF(AND(A6=TRUE,F4=TRUE),\"Ausgewählte Themen der\",IF(AND(A6=TRUE,F6=TRUE),\"\",IF(AND(A6=TRUE,F8=TRUE),\"\",IF(AND(A6=TRUE,F10=TRUE),\"     Energietechnik\",IF(AND(A6=TRUE,F12=TRUE),\"Ausgewählte Themen der\",IF(AND(A8=TRUE,G4=TRUE),\"Fügetechnik\",IF(AND(A8=TRUE,G6=TRUE),\"\",IF(AND(A8=TRUE,G8=TRUE),\"\",IF(AND(A10=TRUE,H4=TRUE),\"     digitalen Produktion\",IF(AND(A10=TRUE,H6=TRUE),\"\",IF(AND(A10=TRUE,H8=TRUE),\"\",IF(AND(A10=TRUE,H10=TRUE),\"     digitalen Produktion\",IF(AND(A10=TRUE,H12=TRUE),\"     digitalen Produktion\"))))))))))))))))))","v":"Service Management"},null,null,{"$f":"IF(AND(A4=TRUE,E12=TRUE),\"     digitalen Produktion\",IF(AND(A6=TRUE,F10=TRUE),\"Fügetechnik\",IF(AND(A6=TRUE,F12=TRUE),\"     digitalen Produktion\",IF(AND(A10=TRUE,H10=TRUE),\"Ausgewählte Themen der\",IF(AND(A10=TRUE,H12=TRUE),\"\",\"\")))))","v":""}]
[{"$f":"IF(AND(A4=TRUE,E4=TRUE),\"Additive Fertigung\",IF(AND(A4=TRUE,E6=TRUE),\"\",IF(AND(A4=TRUE,E8=TRUE),\"\",IF(AND(A4=TRUE,E10=TRUE),\"\",IF(AND(A4=TRUE,E12=TRUE),\"\",IF(AND(A6=TRUE,F4=TRUE),\"     Energietechnik\",IF(AND(A6=TRUE,F6=TRUE),\"\",IF(AND(A6=TRUE,F8=TRUE),\"\",IF(AND(A6=TRUE,F10=TRUE),\"\",IF(AND(A6=TRUE,F12=TRUE),\"     Energietechnik\",IF(AND(A8=TRUE,G4=TRUE),\"Werkstoffprüfung\",IF(AND(A8=TRUE,G6=TRUE),\"\",IF(AND(A8=TRUE,G8=TRUE),\"\",IF(AND(A10=TRUE,H4=TRUE),\"Technisches Produktmanagement\",IF(AND(A10=TRUE,H6=TRUE),\"\",IF(AND(A10=TRUE,H8=TRUE),\"\",IF(AND(A10=TRUE,H10=TRUE),\"Technisches Produktmanagement\",IF(AND(A10=TRUE,H12=TRUE),\"Technisches Produktmanagement\"))))))))))))))))))","v":"Additive Fertigung"},null,null,{"$f":"IF(AND(A4=TRUE,E12=TRUE),\"Technisches Produktmanagement\",IF(AND(A6=TRUE,F10=TRUE),\"Werkstoffprüfung\",IF(AND(A6=TRUE,F12=TRUE),\"Technisches Produktmanagement\",IF(AND(A10=TRUE,H10=TRUE),\"     Energietechnik\",IF(AND(A10=TRUE,H12=TRUE),\"\",\"\")))))","v":""}]
[{"$f":"IF(AND(A4=TRUE,E4=TRUE),\"Qualitätsmanagement und\",IF(AND(A4=TRUE,E6=TRUE),\"\",IF(AND(A4=TRUE,E8=TRUE),\"\",IF(AND(A4=TRUE,E10=TRUE),\"\",IF(AND(A4=TRUE,E12=TRUE),\"\",IF(AND(A6=TRUE,F4=TRUE),\"\",IF(AND(A6=TRUE,F6=TRUE),\"\",IF(AND(A6=TRUE,F8=TRUE),\"\",IF(AND(A6=TRUE,F10=TRUE),\"\",IF(AND(A6=TRUE,F12=TRUE),\"\",IF(AND(A8=TRUE,G4=TRUE),\"Kreativmethoden in der\",IF(AND(A8=TRUE,G6=TRUE),\"\",IF(AND(A8=TRUE,G8=TRUE),\"\",IF(AND(A10=TRUE,H4=TRUE),\"Ergonomie und Zeitmanagement\",IF(AND(A10=TRUE,H6=TRUE),\"\",IF(AND(A10=TRUE,H8=TRUE),\"\",IF(AND(A10=TRUE,H10=TRUE),\"Ergonomie und Zeitmanagement\",IF(AND(A10=TRUE,H12=TRUE),\"Ergonomie und Zeitmanagement\"))))))))))))))))))","v":"Qualitätsmanagement und"},null,null,{"$f":"IF(AND(A4=TRUE,E12=TRUE),\"Ergonomie und Zeitmanagement\",IF(AND(A6=TRUE,F10=TRUE),\"Kreativmethoden in der\",IF(AND(A6=TRUE,F12=TRUE),\"Ergonomie und Zeitmanagement\",IF(AND(A10=TRUE,H10=TRUE),\"\",IF(AND(A10=TRUE,H12=TRUE),\"\",\"\")))))","v":""}]
[{"$f":"IF(AND(A4=TRUE,E4=TRUE),\"     Qualitätsprüfung\",IF(AND(A4=TRUE,E6=TRUE),\"\",IF(AND(A4=TRUE,E8=TRUE),\"\",IF(AND(A4=TRUE,E10=TRUE),\"\",IF(AND(A4=TRUE,E12=TRUE),\"\",IF(AND(A6=TRUE,F4=TRUE),\"\",IF(AND(A6=TRUE,F6=TRUE),\"\",IF(AND(A6=TRUE,F8=TRUE),\"\",IF(AND(A6=TRUE,F10=TRUE),\"\",IF(AND(A6=TRUE,F12=TRUE),\"\",IF(AND(A8=TRUE,G4=TRUE),\"     Produktentwicklung\",IF(AND(A8=TRUE,G6=TRUE),\"\",IF(AND(A8=TRUE,G8=TRUE),\"\",IF(AND(A10=TRUE,H4=TRUE),\"Ausgewählte Themen in Produk-\",IF(AND(A10=TRUE,H6=TRUE),\"\",IF(AND(A10=TRUE,H8=TRUE),\"\",IF(AND(A10=TRUE,H10=TRUE),\"Ausgewählte Themen in Produk-\",IF(AND(A10=TRUE,H12=TRUE),\"Ausgewählte Themen in Produk-\"))))))))))))))))))","v":"     Qualitätsprüfung"},null,null,{"$f":"IF(AND(A4=TRUE,E12=TRUE),\"Ausgewählte Themen in Produk-\",IF(AND(A6=TRUE,F10=TRUE),\"     Produktentwicklung\",IF(AND(A6=TRUE,F12=TRUE),\"Ausgewählte Themen in Produk-\",IF(AND(A10=TRUE,H10=TRUE),\"\",IF(AND(A10=TRUE,H12=TRUE),\"\",\"\")))))","v":""}]
[{"$f":"IF(AND(A4=TRUE,E4=TRUE),\"Ausgewählte Themen in Digital\",IF(AND(A4=TRUE,E6=TRUE),\"\",IF(AND(A4=TRUE,E8=TRUE),\"\",IF(AND(A4=TRUE,E10=TRUE),\"\",IF(AND(A4=TRUE,E12=TRUE),\"\",IF(AND(A6=TRUE,F4=TRUE),\"\",IF(AND(A6=TRUE,F6=TRUE),\"\",IF(AND(A6=TRUE,F8=TRUE),\"\",IF(AND(A6=TRUE,F10=TRUE),\"\",IF(AND(A6=TRUE,F12=TRUE),\"\",IF(AND(A8=TRUE,G4=TRUE),\"Ausgewählte Themen in\",IF(AND(A8=TRUE,G6=TRUE),\"\",IF(AND(A8=TRUE,G8=TRUE),\"\",IF(AND(A10=TRUE,H4=TRUE),\"     tionstechnik und -management\",IF(AND(A10=TRUE,H6=TRUE),\"\",IF(AND(A10=TRUE,H8=TRUE),\"\",IF(AND(A10=TRUE,H10=TRUE),\"     tionstechnik und -management\",IF(AND(A10=TRUE,H12=TRUE),\"     tionstechnik und -management\"))))))))))))))))))","v":"Ausgewählte Themen in Digital"},null,null,{"$f":"IF(AND(A4=TRUE,E12=TRUE),\"     tionstechnik und -management\",IF(AND(A6=TRUE,F10=TRUE),\"Ausgewählte Themen in\",IF(AND(A6=TRUE,F12=TRUE),\"     tionstechnik und -management\",IF(AND(A10=TRUE,H10=TRUE),\"\",IF(AND(A10=TRUE,H12=TRUE),\"\",\"\")))))","v":""}]
[{"$f":"IF(AND(A4=TRUE,E4=TRUE),\"     Engineering and Mobility\",IF(AND(A4=TRUE,E6=TRUE),\"\",IF(AND(A4=TRUE,E8=TRUE),\"\",IF(AND(A4=TRUE,E10=TRUE),\"\",IF(AND(A4=TRUE,E12=TRUE),\"\",IF(AND(A6=TRUE,F4=TRUE),\"\",IF(AND(A6=TRUE,F6=TRUE),\"\",IF(AND(A6=TRUE,F8=TRUE),\"\",IF(AND(A6=TRUE,F10=TRUE),\"\",IF(AND(A6=TRUE,F12=TRUE),\"\",IF(AND(A8=TRUE,G4=TRUE),\"     Entwicklung und Konstruktion\",IF(AND(A8=TRUE,G6=TRUE),\"\",IF(AND(A8=TRUE,G8=TRUE),\"\",IF(AND(A10=TRUE,H4=TRUE),\"\",IF(AND(A10=TRUE,H6=TRUE),\"\",IF(AND(A10=TRUE,H8=TRUE),\"\",IF(AND(A10=TRUE,H10=TRUE),\"\",IF(AND(A10=TRUE,H12=TRUE),\"\"))))))))))))))))))","v":"     Engineering and Mobility"},null,null,{"$f":"IF(AND(A4=TRUE,E12=TRUE),\"\",IF(AND(A6=TRUE,F10=TRUE),\"     Entwicklung und Konstruktion\",IF(AND(A6=TRUE,F12=TRUE),\"\",IF(AND(A10=TRUE,H10=TRUE),\"\",IF(AND(A10=TRUE,H12=TRUE),\"\",\"\")))))","v":""}]